bitfinex/quotes_ETHUSD_20250929
["timestamp","ask_amount","ask_price","bid_price","bid_amount"]
[1759144262209,0.7147,4111.3,4111.2,2.43237984]
[1759144263744,0.2452,4111.3,4111.2,2.43237984]
[1759144264066,6.3422,4111.3,4111.2,2.43237984]
[1759144266674,0.1216,4111.2,4111.1,14.5]
[1759144266992,0.8359,4111.2,4110.8,2.43261652]
[1759144267272,0.7143,4111.1,4110.8,2.43261652]
[1759144269278,0.7143,4111.0,4110.9,14.5]
[1759144269578,5.54069489,4111.0,4110.9,16.93255734]
[1759144269892,5.54069489,4111.0,4110.9,14.5]
[1759144271259,0.2448,4111.0,4110.9,16.93255734]
[1759144271474,3.3358,4111.0,4110.9,16.93255734]
[1759144273679,5.28749489,4111.3,4110.9,16.93255734]
[1759144273680,3.0004,4111.3,4111.0,2.43244124]
[1759144273974,3.0004,4111.3,4110.9,0.6763]
[1759144273975,3.09,4111.2,4111.1,2.432439]
[1759144274344,6.3317,4111.2,4111.1,2.432439]
[1759144274771,3.2417,4111.2,4111.1,2.432439]
[1759144274976,0.1216,4111.1,4111.0,14.5]
[1759144275191,0.1216,4111.1,4111.0,16.93249215]
[1759144275466,0.3633,4111.1,4111.0,16.93249215]
[1759144277056,3.8146,4111.1,4111.0,14.5]
[1759144277274,0.8146,4111.1,4111.0,14.5]
[1759144277487,3.8146,4111.1,4111.0,16.93249817]
[1759144277669,3.3506,4111.1,4111.0,16.93249817]
[1759144277869,3.3498,4111.1,4111.0,16.93249817]
[1759144278568,3.1208,4111.1,4111.0,16.93249817]
[1759144278768,0.1208,4111.1,4111.0,16.93249817]
[1759144279103,0.3498,4111.1,4111.0,14.5]
[1759144279290,0.3498,4111.1,4111.0,16.93249817]
[1759144279989,0.3498,4111.1,4111.0,14.5]
[1759144280507,0.8138,4111.1,4111.0,14.5]
[1759144281467,0.8138,4111.1,4110.7,2.02307163]
[1759144281468,6.40238994,4111.1,4110.7,2.02307163]
[1759144281671,3.087,4111.0,4110.7,2.02307163]
[1759144281866,3.78,4111.0,4110.7,4.45573772]
[1759144282073,0.693,4110.9,4110.7,4.45573772]
[1759144282310,3.086,4110.8,4110.7,2.02307163]
[1759144282614,3.315,4110.8,4110.7,4.45574733]
[1759144282911,3.086,4110.8,4110.7,4.45574733]
[1759144284687,3.315,4110.8,4110.7,4.45574733]
[1759144284897,3.086,4110.8,4110.7,4.45574733]
[1759144285615,0.229,4111.0,4110.9,2.43255734]
[1759144285811,3.313,4111.0,4110.7,16.52307163]
[1759144286025,3.313,4111.0,4110.8,2.43260909]
[1759144286512,3.313,4111.0,4110.7,16.52307163]
[1759144286704,0.1216,4110.8,4110.7,18.95574733]
[1759144286909,3.2056,4110.8,4110.7,18.95574733]
[1759144287086,3.2056,4110.8,4110.7,16.52307163]
[1759144287288,3.4346,4110.8,4110.7,16.52307163]
[1759144288021,3.4346,4110.8,4110.7,18.95574733]
[1759144288317,3.2056,4110.8,4110.7,18.95574733]
[1759144289204,3.2056,4110.8,4110.7,19.20514733]
[1759144289416,0.1216,4110.8,4110.7,19.20514733]
[1759144289716,3.2046,4110.8,4110.7,19.20514733]
[1759144291128,3.2046,4110.8,4110.7,4.70514733]
[1759144291424,0.1216,4110.8,4110.7,4.70514733]
[1759144291628,3.2026,4110.8,4110.7,19.20514733]
[1759144292130,0.1216,4110.8,4110.7,21.87789113]
[1759144292327,3.2026,4110.8,4110.7,21.87789113]
[1759144294035,0.0004,4111.3,4111.2,2.43237984]
[1759144294200,3.203,4111.3,4111.2,2.43237984]
[1759144294625,3.203,4111.3,4111.2,3.14427984]
[1759144295232,0.122,4111.3,4111.2,17.64427984]
[1759144295435,3.202,4111.3,4111.2,19.65195316]
[1759144297351,0.122,4111.3,4111.2,19.65195316]
[1759144297537,3.0794,4111.3,4111.2,19.65195316]
[1759144298249,0.0004,4111.3,4111.2,19.65195316]
[1759144299214,0.0004,4111.3,4111.2,16.93237984]
[1759144300030,0.0004,4111.3,4111.2,17.16857984]
[1759144300227,0.0004,4111.3,4111.2,17.64097984]
[1759144301549,3.0784,4111.3,4111.2,17.64097984]
[1759144303062,3.0776,4111.3,4111.2,17.64097984]
[1759144303255,0.1216,4111.5,4111.4,2.43226151]
[1759144303439,3.1976,4111.5,4111.4,2.43226151]
[1759144303763,3.1976,4111.5,4111.4,2.66846151]
[1759144304060,0.1216,4111.5,4111.4,3.16518412]
[1759144304261,3.077,4111.6,4111.5,2.43220235]
[1759144304471,3.077,4111.6,4111.5,5.59208105]
[1759144304823,3.077,4111.6,4111.5,4.88348105]
[1759144305026,3.077,4111.6,4111.5,5.59208105]
[1759144305664,0.001,4111.6,4111.5,5.59208105]
[1759144306432,0.001,4111.6,4111.5,3.14080235]
[1759144306628,0.001,4111.6,4111.5,3.16512437]
[1759144306834,0.001,4111.6,4111.5,20.74012437]
[1759144307160,0.001,4111.6,4111.5,20.71580235]
[1759144317050,0.001,4111.6,4111.5,20.83740235]
[1759144317273,0.001,4111.6,4111.5,23.3555646]
[1759144320049,0.6963,4111.6,4111.5,19.4503646]
[1759144320290,0.6963,4111.6,4111.5,16.93220235]
[1759144321585,0.2374,4111.6,4111.5,16.93220235]
[1759144321887,0.001,4111.6,4111.5,16.93220235]
[1759144322089,0.001,4111.6,4111.5,17.64080235]
[1759144322255,0.001,4111.6,4111.5,16.93220235]
[1759144322451,0.6963,4111.6,4111.5,16.93220235]
[1759144323959,3.6963,4111.6,4111.5,14.5]
[1759144324171,3.6963,4111.6,4111.5,16.93220235]
[1759144326070,0.6963,4111.6,4111.5,16.93220235]
[1759144327884,3.7715,4111.6,4111.5,16.93220235]
[1759144328398,0.6955,4111.6,4111.5,16.93220235]
[1759144328601,0.0002,4111.6,4111.5,16.93220235]
[1759144328907,3.0762,4111.6,4111.5,19.10485365]
[1759144329198,3.0762,4111.6,4111.5,16.93220235]
[1759144329785,3.0762,4111.6,4111.5,17.16270235]
[1759144330199,0.0002,4111.6,4111.5,17.16270235]
[1759144330402,0.0002,4111.6,4111.5,17.60890235]
[1759144330879,0.0002,4111.6,4111.5,17.16270235]
[1759144331282,0.0002,4111.6,4111.5,19.13436365]
[1759144331907,0.0002,4111.6,4111.5,19.70216365]
[1759144334192,0.0002,4111.6,4111.5,19.25596365]
[1759144334978,0.0002,4111.6,4111.5,19.02546365]
[1759144338808,0.0002,4111.6,4111.5,19.26056365]
[1759144338973,0.0002,4111.6,4111.5,19.69566365]
[1759144340709,0.0002,4111.6,4111.5,19.02546365]
[1759144343003,0.6564,4111.6,4111.5,16.93220235]
[1759144343988,3.7274,4111.6,4111.5,16.93220235]
[1759144346021,3.7274,4111.6,4111.5,2.43220235]
[1759144346385,3.7274,4111.6,4111.5,16.93220235]
[1759144346586,0.0002,4111.6,4111.5,19.53905365]
[1759144347721,0.0002,4111.6,4111.5,22.53905365]
[1759144349735,0.371,4112.9,4112.4,2.43167007]
[1759144350086,0.371,4112.9,4112.4,2.66677007]
[1759144351234,0.371,4112.9,4112.4,3.10187007]
[1759144351438,0.371,4112.9,4112.4,3.9623317]
[1759144351803,0.371,4112.9,4112.4,3.5272317]
[1759144353038,0.0002,4112.5,4112.4,3.5272317]
[1759144353236,0.0002,4112.5,4112.4,3.9866484]
[1759144353999,0.0002,4112.5,4112.4,7.0576484]
[1759144354206,0.0002,4112.5,4112.4,10.1541317]
[1759144354502,0.0002,4112.5,4112.4,24.6541317]
[1759144356137,0.0002,4112.5,4112.4,23.9839317]
[1759144356317,0.0002,4112.5,4112.4,24.6541317]
[1759144357039,0.0002,4112.5,4112.4,20.9129317]
[1759144357255,0.0002,4112.5,4112.4,17.9129317]
[1759144357644,0.2269,4112.5,4112.4,17.9129317]
[1759144359427,0.0002,4112.5,4112.4,17.9129317]
[1759144360354,0.0002,4112.5,4112.4,3.4129317]
[1759144360857,0.0002,4112.5,4112.4,17.9129317]
[1759144362253,0.0002,4112.5,4112.4,20.9829317]
[1759144362841,0.0002,4112.5,4112.4,21.2214317]
[1759144363343,0.0002,4112.5,4112.4,20.9829317]
[1759144363929,0.0002,4112.5,4112.4,21.2214317]
[1759144364257,0.0002,4112.5,4112.4,18.1514317]
[1759144364462,0.0002,4112.5,4112.4,18.6070317]
[1759144364767,0.0002,4112.5,4112.4,18.1514317]
[1759144364979,0.0002,4112.5,4112.4,17.9129317]
[1759144368541,0.2469,4112.5,4112.4,17.9129317]
[1759144369276,0.0002,4112.5,4112.4,17.9129317]
[1759144372646,0.0002,4112.5,4112.4,18.1514317]
[1759144373165,0.0002,4112.5,4112.4,17.9129317]
[1759144377454,0.0002,4112.5,4112.4,14.6208]
[1759144377786,0.0002,4112.5,4112.3,0.002]
[1759144377787,5.53311297,4112.5,4112.3,0.002]
[1759144377978,3.07,4112.4,4112.3,2.43371278]
[1759144378281,3.5295,4112.4,4112.3,16.93371278]
[1759144378664,8.35701297,4112.4,4112.3,16.93371278]
[1759144379875,8.60371297,4112.4,4112.3,16.93371278]
[1759144380584,3.7762,4112.4,4112.3,16.93371278]
[1759144381289,3.7762,4112.4,4112.3,2.43371278]
[1759144381787,3.7762,4112.4,4112.3,16.93371278]
[1759144381984,3.7762,4112.4,4112.3,14.502]
[1759144382192,3.7762,4112.4,4112.3,16.9337292]
[1759144382961,3.7762,4112.4,4112.3,14.502]
[1759144383270,4.6365713,4112.4,4112.3,16.9337292]
[1759144383470,3.7762,4112.4,4112.3,16.9337292]
[1759144383675,3.3167,4112.4,4112.3,16.9337292]
[1759144383874,3.07,4112.4,4112.3,16.9337292]
[1759144384274,0.2467,4112.6,4112.5,2.43161094]
[1759144384566,4.82751297,4112.7,4112.6,2.43155181]
[1759144384891,7.89751297,4112.7,4112.6,2.43155181]
[1759144385259,8.79865788,4112.7,4112.5,2.43160076]
[1759144385465,5.53371297,4112.6,4112.4,2.43166293]
[1759144385896,5.53371297,4112.6,4112.3,16.93371396]
[1759144386073,0.7062,4112.5,4112.3,16.93371396]
[1759144386397,3.07,4112.4,4112.3,16.93371396]
[1759144386595,3.7762,4112.4,4112.3,16.93371396]
[1759144387762,3.7762,4112.4,4112.3,14.502]
[1759144388181,3.7762,4112.4,4112.3,16.9337292]
[1759144388783,3.7762,4112.4,4112.3,14.502]
[1759144388986,3.7762,4112.4,4112.3,16.9337292]
[1759144389297,4.6365713,4112.4,4112.3,0.002]
[1759144393973,5.3681778,4112.4,4112.3,0.002]
[1759144396289,10.95531366,4112.4,4112.3,0.002]
[1759144401082,11.74731366,4112.4,4112.3,0.002]
[1759144401279,1.5920778,4112.4,4112.3,0.002]
[1759144401485,4.0478065,4112.4,4112.3,0.002]
[1759144402245,7.74017657,4112.4,4112.3,0.002]
[1759144402752,5.3077065,4112.4,4112.3,0.002]
[1759144402954,7.73937657,4112.4,4112.3,0.002]
[1759144403166,13.32651243,4112.4,4112.3,0.002]
[1759144403653,16.32651243,4112.4,4112.3,0.002]
[1759144403857,13.89484236,4112.4,4112.3,0.002]
[1759144404154,13.89484236,4112.4,4111.9,0.002]
[1759144404155,4.68590661,4112.0,4111.9,0.002]
[1759144404341,13.34304247,4112.0,4111.9,0.002]
[1759144404657,14.05794247,4112.0,4111.9,0.002]
[1759144404834,14.43948848,4112.0,4111.9,0.002]
[1759144405041,14.53705909,4112.0,4111.9,0.002]
[1759144405222,17.99143539,4112.0,4111.9,0.002]
[1759144406956,17.99143539,4112.0,4111.5,0.002]
[1759144406957,7.6861432,4111.6,4111.5,0.002]
[1759144407157,16.34327906,4111.6,4111.5,0.002]
[1759144407361,17.05817906,4111.6,4111.5,0.002]
[1759144407722,17.15576848,4111.6,4111.5,0.002]
[1759144408051,18.93470736,4111.6,4111.5,0.002]
[1759144409660,18.93470736,4111.6,4111.5,0.012]
[1759144414363,12.89580736,4111.6,4111.5,0.012]
[1759144414566,15.96580736,4111.6,4111.5,0.012]
[1759144414771,16.75780736,4111.6,4111.5,0.012]
[1759144415175,17.00400736,4111.6,4111.5,0.012]
[1759144416069,16.75780736,4111.6,4111.5,0.012]
[1759144416876,17.00400736,4111.6,4111.5,0.012]
[1759144417047,18.93470736,4111.6,4111.5,0.012]
[1759144417377,6.34580235,4111.5,4111.4,0.012]
[1759144417583,2.43226151,4111.4,4111.3,0.012]
[1759144417890,9.21716151,4111.4,4111.3,0.012]
[1759144418047,9.94905359,4111.4,4111.3,0.012]
[1759144418252,10.33066478,4111.4,4111.3,0.012]
[1759144418549,12.58466478,4111.4,4111.3,0.012]
[1759144418777,14.36360366,4111.4,4111.3,0.012]
[1759144421488,13.64870366,4111.4,4111.3,0.012]
[1759144421672,13.88260366,4111.4,4111.3,0.012]
[1759144423866,14.33510366,4111.4,4111.3,0.012]
[1759144426053,13.88260366,4111.4,4111.3,0.012]
[1759144427192,14.33510366,4111.4,4111.3,0.012]
[1759144427779,14.33430366,4111.4,4111.3,0.012]
[1759144429295,13.88180366,4111.4,4111.3,0.012]
[1759144429498,14.33430366,4111.4,4111.3,0.012]
[1759144429694,13.88180366,4111.4,4111.3,0.012]
[1759144430102,13.64790366,4111.4,4111.3,0.012]
[1759144430500,13.88180366,4111.4,4111.3,0.012]
[1759144432608,13.64790366,4111.4,4111.3,0.012]
[1759144433609,13.88180366,4111.4,4111.3,0.012]
[1759144433919,14.33430366,4111.4,4111.3,0.012]
[1759144436916,13.88180366,4111.4,4111.3,0.012]
[1759144437775,10.57790366,4111.4,4111.3,0.696]
[1759144437976,9.70063913,4111.4,4111.3,0.012]
[1759144438182,9.70063913,4111.4,4111.3,0.696]
[1759144438381,12.38902794,4111.4,4111.3,0.696]
[1759144439690,9.31902794,4111.4,4111.3,0.696]
[1759144439891,12.38902794,4111.4,4111.3,0.696]
[1759144440311,6.80189208,4111.4,4111.3,0.696]
[1759144440494,6.80289208,4111.4,4111.3,0.696]
[1759144440696,6.80289208,4111.4,4111.3,0.012]
[1759144440697,12.80427361,4111.4,4111.3,0.012]
[1759144440897,13.49067361,4111.4,4111.3,0.012]
[1759144442414,13.03817361,4111.4,4111.3,0.012]
[1759144442730,18.62530947,4111.4,4111.3,0.012]
[1759144443232,19.07780947,4111.4,4111.3,0.012]
[1759144443598,19.40087608,4111.4,4111.3,0.012]
[1759144443925,32.60944696,4111.4,4111.3,0.012]
[1759144444339,24.82042296,4111.4,4111.3,0.012]
[1759144444537,4.029,4110.9,4110.8,0.002]
[1759144444697,5.58713586,4109.1,4106.0,4.07692562]
[1759144444898,0.792,4108.9,4108.2,0.2388]
[1759144445149,3.0,4108.7,4107.2,14.5]
[1759144445323,6.872,4108.6,4108.0,0.684]
[1759144445498,5.43403758,4108.4,4108.0,0.684]
[1759144445698,8.51403758,4108.4,4108.0,0.684]
[1759144446095,9.30603758,4108.4,4108.0,0.684]
[1759144446309,1.464,4107.7,4106.0,1.1463162]
[1759144446543,21.56450101,4108.3,4106.0,1.1463162]
[1759144446544,0.792,4106.1,4106.0,1.1463162]
[1759144446844,2.43491935,4107.0,4106.1,0.684]
[1759144447001,0.73274746,4106.4,4106.2,0.684]
[1759144447337,0.73274746,4106.4,4106.0,1.1463162]
[1759144447338,2.43464798,4107.4,4106.3,0.86703162]
[1759144447505,0.73254796,4107.3,4106.4,0.70835223]
[1759144447716,0.38198596,4107.2,4106.5,15.184]
[1759144447915,3.098,4107.1,4106.6,0.70835104]
[1759144448257,0.38198596,4107.2,4106.3,0.18303162]
[1759144448258,3.098,4107.0,4106.7,0.684]
[1759144448415,3.098,4107.0,4106.3,0.18303162]
[1759144448616,0.38198596,4107.2,4106.8,14.5]
[1759144448817,3.099,4107.1,4106.9,1.38976185]
[1759144449024,0.38198596,4107.2,4107.0,0.6907]
[1759144449317,3.1,4107.1,4107.0,0.6907]
[1759144449716,0.38198596,4107.2,4107.0,0.6907]
[1759144449938,0.38198596,4107.2,4106.9,0.70576185]
[1759144450252,3.102,4107.1,4107.0,1.52057619]
[1759144450418,3.102,4107.1,4107.0,2.21127619]
[1759144452757,3.1012,4107.1,4107.0,2.21127619]
[1759144452963,3.101,4107.1,4107.0,2.21127619]
[1759144453331,3.101,4107.1,4107.0,0.6907]
[1759144453537,3.101,4107.1,4107.0,15.1907]
[1759144454467,3.101,4107.1,4107.0,17.62556729]
[1759144454765,3.2226,4107.1,4107.0,17.62556729]
[1759144455065,3.2216,4107.1,4107.0,15.1907]
[1759144455267,3.2216,4107.1,4107.0,16.70977]
[1759144455472,3.2216,4107.1,4107.0,14.5]
[1759144455671,3.1,4107.1,4107.0,14.5]
[1759144455871,3.1,4107.1,4107.0,14.7366]
[1759144456568,3.1,4107.1,4107.0,15.1668]
[1759144458472,3.1,4107.1,4107.0,17.60166729]
[1759144458767,3.1,4107.1,4107.0,15.1668]
[1759144459064,3.1,4107.1,4107.0,14.7366]
[1759144459437,3.1,4107.1,4107.0,16.93486729]
[1759144459637,3.1,4107.1,4107.0,14.5]
[1759144460064,3.1,4107.1,4107.0,15.1668]
[1759144461139,3.1,4107.1,4107.0,17.60166729]
[1759144461772,3.1,4107.1,4107.0,15.1668]
[1759144462573,3.1,4107.1,4107.0,14.7366]
[1759144462777,3.1,4107.1,4107.0,14.5]
[1759144463150,3.1,4107.1,4106.3,2.43527166]
[1759144463151,3.7819,4107.1,4106.3,2.43527166]
[1759144463367,0.2366,4107.0,4106.1,0.6668]
[1759144463565,3.0,4107.1,4106.2,0.18151162]
[1759144463750,3.096,4107.0,4106.4,14.5]
[1759144463956,3.096,4107.0,4106.5,3.10192403]
[1759144464165,3.096,4107.0,4106.6,0.6668]
[1759144464343,0.2366,4106.9,4106.4,16.93517699]
[1759144464548,0.2366,4106.9,4106.5,2.43514847]
[1759144464759,0.2366,4106.9,4106.4,14.7366]
[1759144464960,0.2366,4106.9,4106.6,2.4350924]
[1759144465176,3.096,4107.0,4106.6,2.4350828]
[1759144465386,3.096,4107.0,4106.7,0.2366]
[1759144466069,0.1216,4106.7,4106.5,2.86535651]
[1759144466269,3.095,4106.9,4106.6,2.86529777]
[1759144466672,3.095,4106.9,4106.7,2.67163836]
[1759144466867,3.095,4106.9,4106.7,0.2366]
[1759144467069,3.095,4106.9,4106.7,2.67163624]
[1759144467379,3.095,4106.9,4106.7,0.2366]
[1759144467572,0.1216,4106.7,4106.4,15.1668]
[1759144467789,0.1216,4106.7,4106.6,2.43510446]
[1759144467982,3.095,4106.9,4106.6,2.43510446]
[1759144468295,3.095,4106.9,4106.6,0.2366]
[1759144468590,3.095,4106.9,4106.6,2.67168454]
[1759144468949,3.095,4106.9,4106.7,2.43498797]
[1759144469576,0.1216,4106.7,4106.6,0.2366]
[1759144469849,0.1216,4106.7,4106.6,3.10190446]
[1759144471563,0.1216,4106.7,4106.4,14.7366]
[1759144471755,3.095,4106.9,4106.4,14.7366]
[1759144472289,2.43569758,4105.6,4102.3,2.43765675]
[1759144472588,4.83911204,4104.4,4103.3,0.2366]
[1759144472789,3.203,4104.3,4103.3,15.1668]
[1759144473001,3.204,4104.2,4103.3,15.1668]
[1759144473181,3.204,4104.2,4103.7,4.65616272]
[1759144473483,3.4416,4104.1,4103.7,2.21935262]
[1759144473787,3.205,4104.0,4103.7,2.21935262]
[1759144474492,0.2366,4103.9,4103.7,2.21935262]
[1759144474785,3.205,4104.0,4103.9,2.43670654]
[1759144476056,0.2366,4104.2,4104.0,2.43658851]
[1759144476254,3.4396,4104.1,4103.7,2.21935262]
[1759144476454,3.4396,4104.1,4104.0,2.43664717]
[1759144476680,3.203,4104.1,4104.0,2.43664717]
[1759144477050,0.792,4104.4,4104.2,2.4364867]
[1759144477256,0.792,4104.4,4104.0,0.2366]
[1759144477257,3.202,4104.3,4104.0,0.4302]
[1759144477456,3.202,4104.3,4104.2,2.43652843]
[1759144477704,3.2012,4104.3,4104.2,2.43652843]
[1759144478218,0.38223559,4104.5,4104.4,2.4364097]
[1759144478417,3.58323559,4104.5,4104.4,2.4364097]
[1759144479394,0.38223559,4104.5,4104.4,2.4364097]
[1759144479615,3.199,4104.5,4104.4,2.4364097]
[1759144480020,0.2366,4105.0,4104.5,2.436342]
[1759144480220,3.0,4104.8,4104.4,2.43639486]
[1759144480619,3.2468,4104.8,4104.3,5.07571204]
[1759144480785,3.0,4104.8,4104.3,4.83911204]
[1759144480989,3.0,4104.8,4104.0,14.7484]
[1759144480990,0.2468,4104.7,4104.0,14.7484]
[1759144481185,0.2468,4104.7,4104.1,4.83911204]
[1759144481445,0.2468,4104.7,4104.5,2.43629739]
[1759144481725,3.198,4104.6,4104.5,2.43629739]
[1759144482390,1.0388,4105.2,4104.7,2.43622824]
[1759144482607,3.0,4105.0,4104.7,2.43622824]
[1759144482805,3.2468,4105.0,4104.7,2.43622824]
[1759144483430,0.2468,4105.0,4104.5,2.68474804]
[1759144483721,0.1216,4104.7,4104.6,2.43629099]
[1759144484020,0.1216,4104.7,4104.6,3.14739099]
[1759144484612,3.3146,4104.7,4104.6,3.14739099]
[1759144486432,3.3146,4104.7,4104.6,7.98650303]
[1759144487732,3.3146,4104.7,4104.6,22.48650303]
[1759144488625,0.1216,4104.7,4104.6,22.79894594]
[1759144488998,0.1216,4104.7,4104.6,14.5]
[1759144489203,0.1216,4104.7,4104.6,16.93629099]
[1759144489404,0.1224,4104.7,4104.6,16.93629099]
[1759144490024,0.1224,4104.7,4104.6,17.64739099]
[1759144493755,0.1224,4104.7,4104.6,22.48650303]
[1759144494234,0.1224,4104.7,4104.6,18.57833503]
[1759144494558,0.1224,4104.7,4104.6,23.41744707]
[1759144494852,0.0008,4104.7,4104.6,14.5]
[1759144495055,0.2476,4104.7,4104.6,14.5]
[1759144495561,0.2476,4104.7,4104.5,2.43633718]
[1759144495889,0.2476,4104.7,4104.5,2.43629303]
[1759144496024,0.2476,4104.7,4104.5,16.93629303]
[1759144496224,0.2476,4104.7,4104.6,2.43629099]
[1759144496480,0.2476,4104.7,4104.5,16.93634268]
[1759144496959,0.2476,4104.7,4104.5,14.5]
[1759144497258,0.2476,4104.7,4104.6,2.43629099]
[1759144497456,0.2476,4104.7,4104.5,14.5]
[1759144497457,0.0008,4104.7,4104.5,16.9363463]
[1759144497656,3.4258,4104.6,4104.5,16.9363463]
[1759144497864,3.179,4104.6,4104.5,16.9363463]
[1759144498444,3.4258,4104.6,4104.5,16.9363463]
[1759144498646,3.179,4104.6,4104.5,16.9363463]
[1759144500533,3.179,4104.6,4104.5,2.4363463]
[1759144500934,3.4258,4104.6,4104.5,2.4363463]
[1759144501166,3.4258,4104.6,4104.5,16.9363463]
[1759144501368,3.179,4104.6,4104.5,16.9363463]
[1759144501667,3.4258,4104.6,4104.5,2.4363463]
[1759144502764,3.425,4104.6,4104.5,2.4363463]
[1759144504007,3.425,4104.6,4104.3,0.002]
[1759144504151,3.76768,4104.6,4104.5,2.43635034]
[1759144504806,3.425,4104.6,4104.5,2.43635034]
[1759144505294,3.425,4104.6,4104.4,2.4363991]
[1759144505435,0.8214,4104.5,4104.3,0.002]
[1759144505762,0.8214,4104.5,4104.4,2.4364097]
[1759144505964,2.2854,4104.5,4104.4,2.4364097]
[1759144506150,0.8214,4104.5,4104.4,2.4364097]
[1759144506350,0.1216,4104.5,4104.4,2.4364097]
[1759144507450,0.1216,4104.5,4104.4,7.98662174]
[1759144508470,0.1216,4104.5,4104.4,9.02913595]
[1759144512119,0.1216,4104.5,4104.4,12.19313595]
[1759144512415,0.0018,4104.7,4104.6,2.43629099]
[1759144512569,0.0018,4104.7,4104.6,5.62365389]
[1759144512770,0.0018,4104.7,4104.6,6.27139099]
[1759144513106,0.0018,4104.7,4104.6,22.24268775]
[1759144514310,0.0018,4104.7,4104.6,22.36428775]
[1759144514907,0.0018,4104.7,4104.6,27.20339979]
[1759144515320,0.0018,4104.7,4104.6,30.20339979]
[1759144515521,0.1216,4105.9,4105.8,2.43557893]
[1759144515728,1.7068,4106.7,4106.6,2.43510446]
[1759144515904,2.1743,4106.7,4106.0,4.83911204]
[1759144516100,0.1216,4106.4,4106.0,4.83911204]
[1759144516306,0.1216,4106.4,4106.2,2.43534167]
[1759144516625,0.1216,4106.4,4106.3,2.43528237]
[1759144517189,0.1216,4106.4,4106.3,16.93528237]
[1759144517706,0.3664,4106.4,4106.3,16.93528237]
[1759144518591,0.1216,4106.4,4106.3,16.93528237]
[1759144519054,0.1216,4106.4,4106.3,17.64548237]
[1759144519520,0.1216,4106.4,4106.3,16.93528237]
[1759144520726,0.1216,4106.4,4106.3,2.43528237]
[1759144520925,0.1216,4106.4,4106.3,2.67928237]
[1759144521227,0.1216,4106.4,4106.3,17.64548237]
[1759144523047,0.1216,4106.4,4106.3,23.12537011]
[1759144523207,0.001,4107.1,4107.0,2.43486729]
[1759144523610,0.001,4107.1,4107.0,2.67886729]
[1759144523803,0.001,4107.1,4107.0,2.43486729]
[1759144526514,0.001,4107.1,4107.0,2.67886729]
[1759144526909,0.001,4107.1,4107.0,17.17886729]
[1759144527109,0.001,4107.1,4107.0,18.406966]
[1759144527542,0.0002,4107.1,4107.0,18.406966]
[1759144529825,0.0002,4107.1,4107.0,21.554966]
[1759144531036,0.0002,4107.1,4107.0,21.676566]
[1759144531350,0.0002,4107.1,4107.0,24.676566]
[1759144531654,0.0002,4107.1,4107.0,24.554966]
[1759144532224,1.464,4109.3,4108.9,2.43372294]
[1759144532555,1.464,4109.3,4109.0,2.43365535]
[1759144532556,3.2924,4109.2,4109.0,2.43365535]
[1759144532763,3.2924,4109.2,4108.5,0.02433978]
[1759144533048,3.2924,4109.2,4109.0,2.43363651]
[1759144533049,0.7123,4109.1,4109.0,2.43363651]
[1759144533636,0.7123,4109.1,4108.5,16.9339485]
[1759144533836,0.7123,4109.0,4108.6,2.43391909]
[1759144534038,0.7123,4108.9,4108.5,14.5]
[1759144534256,5.43362422,4109.1,4107.6,2.43447633]
[1759144534257,0.7123,4108.8,4107.6,2.43447633]
[1759144534421,5.1763,4108.7,4106.9,0.4662]
[1759144534620,0.7123,4108.6,4107.9,2.43429299]
[1759144534860,3.8573,4108.5,4107.9,2.43427531]
[1759144535059,0.7123,4108.4,4108.0,2.4342246]
[1759144535260,3.145,4108.5,4108.0,2.4342246]
[1759144535463,0.7123,4108.3,4108.1,2.43420942]
[1759144535962,3.8563,4108.2,4108.1,2.43421533]
[1759144536248,3.8563,4108.2,4107.5,2.43451448]
[1759144536448,0.7123,4108.1,4107.8,2.43433947]
[1759144536651,3.144,4108.2,4108.0,2.43423488]
[1759144537016,3.144,4108.2,4107.9,2.43428697]
[1759144537220,0.7123,4108.1,4108.0,2.43426294]
[1759144538365,0.7123,4108.1,4108.0,2.43427458]
[1759144539153,0.7123,4108.1,4107.7,2.43445195]
[1759144539375,0.6748,4108.0,4107.9,2.43428604]
[1759144540033,0.6748,4108.0,4107.4,14.5]
[1759144540034,1.05668,4108.0,4107.4,14.5]
[1759144540359,0.6748,4107.9,4107.5,2.43455422]
[1759144540756,2.8158899,4108.4,4107.0,2.43486729]
[1759144540757,3.8148,4107.8,4107.0,2.43486729]
[1759144540974,3.5694,4107.8,4107.7,2.43445236]
[1759144541529,0.2454,4108.3,4107.8,2.4343931]
[1759144541734,0.2454,4108.3,4108.2,2.43415607]
[1759144541963,0.38184859,4108.4,4108.3,2.43409682]
[1759144542266,0.793,4108.9,4108.6,2.43387636]
[1759144542560,0.48342518,4108.8,4108.7,2.43385985]
[1759144542733,7.84982518,4108.8,4108.7,2.43385985]
[1759144543164,7.84982518,4108.8,4108.7,2.38385985]
[1759144543463,3.62742518,4108.8,4108.7,2.38385985]
[1759144543645,3.3894,4108.8,4108.7,2.38385985]
[1759144543831,0.1216,4108.7,4108.1,0.6802]
[1759144544031,3.1216,4108.7,4108.1,0.6802]
[1759144544266,0.2454,4108.6,4108.5,2.43397833]
[1759144544570,0.6748,4108.6,4108.5,2.43397833]
[1759144545143,0.1216,4108.5,4108.4,2.43403101]
[1759144545465,0.1216,4108.5,4107.2,3.143]
[1759144545466,0.7964,4108.5,4107.1,0.2417]
[1759144545649,3.3884,4108.4,4108.3,2.43409682]
[1759144546171,0.72016481,4108.6,4108.5,2.43397833]
[1759144546348,3.8178,4108.6,4108.4,2.43402035]
[1759144546534,3.8178,4108.6,4107.6,2.87298611]
[1759144546535,0.1216,4108.3,4108.2,2.43414947]
[1759144546735,0.38184309,4108.5,4108.3,2.43409553]
[1759144547035,0.38184309,4108.5,4107.2,17.49484873]